bitfinex/quotes_SOLUSD_20240906
["timestamp","ask_amount","ask_price","bid_price","bid_amount"]
[1725585042887,20.0,129.25,129.21,23.3707]
[1725585044169,20.0,129.25,129.22,7.7386]
[1725585044894,20.0,129.25,129.22,27.0851]
[1725585045096,20.0,129.26,129.23,7.738]
[1725585045271,20.0,129.27,129.22,25.3801]
[1725585045471,20.0,129.31,129.23,45.0]
[1725585045781,27.7338,129.31,129.25,7.7368]
[1725585045986,7.734,129.3,129.25,7.7368]
[1725585046187,27.7345,129.29,129.24,27.0801]
[1725585046490,7.7345,129.29,129.24,27.0801]
[1725585046693,20.0,129.28,129.24,27.0801]
[1725585047069,7.736,129.27,129.22,13.7722]
[1725585049689,27.7351,129.28,129.23,7.738]
[1725585049890,20.0,129.28,129.24,27.0807]
[1725585050191,20.0,129.29,129.24,27.0807]
[1725585050399,20.0,129.31,129.24,27.0807]
[1725585050978,7.7349,129.29,129.24,27.0807]
[1725585051295,20.0,129.28,129.24,27.0807]
[1725585051488,27.7351,129.28,129.24,19.3438]
[1725585053292,20.0,129.28,129.24,19.3438]
[1725585053673,20.0,129.29,129.24,19.3438]
[1725585053874,20.0,129.29,129.25,7.7369]
[1725585054274,27.7345,129.29,129.24,19.3438]
[1725585055295,27.7345,129.29,129.24,27.0809]
[1725585055596,7.7352,129.28,129.24,19.3438]
[1725585055785,20.0,129.27,129.24,19.3438]
[1725585058305,20.0,129.27,129.24,27.0809]
[1725585058505,20.0,129.31,129.24,27.0809]
[1725585058803,7.735,129.29,129.24,27.0809]
[1725585059004,27.7351,129.28,129.24,19.3438]
[1725585059182,7.7359,129.27,129.22,13.7722]
[1725585059688,27.7352,129.28,129.23,7.7381]
[1725585060299,7.7359,129.27,129.22,13.7722]
[1725585063105,7.7359,129.27,129.22,7.7386]
[1725585066106,20.0,129.28,129.21,34.9798]
[1725585066281,7.7381,129.23,129.19,7.7403]
[1725585066481,15.4605,129.27,129.19,7.7403]
[1725585066677,20.0,129.26,129.2,7.7398]
[1725585068306,7.7371,129.25,129.2,7.7398]
[1725585068607,27.7375,129.24,129.2,7.7398]
[1725585070108,27.7375,129.24,129.19,7.7403]
[1725585070993,7.7382,129.23,129.19,7.7403]
[1725585075486,7.7382,129.23,129.18,27.0931]
[1725585076804,7.7382,129.23,129.19,7.7403]
[1725585077498,20.0,129.24,129.2,7.7399]
[1725585077804,7.7371,129.25,129.21,9.28689655]
[1725585078129,20.0,129.24,129.21,9.28689655]
[1725585079619,20.0,129.24,129.2,27.0891]
[1725585079847,27.7377,129.24,129.2,27.0891]
[1725585081226,27.7377,129.24,129.2,19.3494]
[1725585082333,7.7383,129.23,129.19,7.7404]
[1725585084612,27.7377,129.24,129.19,7.7404]
[1725585088851,20.0,129.24,129.2,45.0]
[1725585089027,20.0,129.25,129.22,7.7386]
[1725585089336,20.0,129.26,129.22,7.7386]
[1725585092719,27.7367,129.26,129.21,27.0871]
[1725585094338,27.7367,129.26,129.22,7.7386]
[1725585095536,20.0,129.26,129.22,7.7386]
[1725585095741,20.0,129.26,129.23,7.7381]
[1725585096622,20.0,129.26,129.23,19.3448]
[1725585096820,7.7337,129.31,129.26,7.7361]
[1725585097045,7.7337,129.31,129.25,19.3418]
[1725585097734,7.7322,129.33,129.28,27.0721]
[1725585098350,7.7329,129.32,129.28,19.3371]
[1725585099127,20.0,129.31,129.28,19.3371]
[1725585099749,20.0,129.31,129.28,27.072]
[1725585099928,7.7322,129.33,129.28,27.072]
[1725585099929,20.0,129.32,129.28,27.072]
[1725585100524,20.0,129.32,129.29,7.7344]
[1725585100829,20.0,129.33,129.29,7.7344]
[1725585102450,6.0105,129.38,129.3,19.334]
[1725585102623,7.7302,129.37,129.31,45.0]
[1725585102826,7.7302,129.37,129.32,7.7326]
[1725585103132,7.7303,129.36,129.31,7.7332]
[1725585103934,20.0,129.35,129.32,7.7324]
[1725585104130,20.0,129.36,129.32,7.7324]
[1725585104452,27.7304,129.36,129.31,7.7331]
[1725585107849,20.0,129.36,129.28,6.5045]
[1725585108161,7.7322,129.33,129.28,14.2394]
[1725585108368,7.7322,129.33,129.29,7.7343]
[1725585111675,7.7317,129.34,129.29,7.7343]
[1725585111971,20.0,129.33,129.3,54.28026575]
[1725585112270,20.0,129.33,129.31,7.733]
[1725585112465,7.7305,129.36,129.31,7.733]
[1725585112652,20.0,129.35,129.31,7.733]
[1725585114051,20.0,129.35,129.3,52.7337]
[1725585114052,27.7311,129.35,129.3,52.7337]
[1725585114868,7.7315,129.34,129.3,52.7337]
[1725585115046,7.7315,129.34,129.29,27.0699]
[1725585116265,7.7322,129.33,129.29,27.0699]
[1725585117282,7.7317,129.34,129.29,27.0699]
[1725585119163,7.7332,129.32,129.28,6.5045]
[1725585119380,20.0,129.35,129.27,23.6058]
[1725585119553,7.7337,129.31,129.27,15.8703]
[1725585120368,7.7328,129.32,129.27,15.8703]
[1725585120573,20.0,129.31,129.28,45.0]
[1725585120779,27.7333,129.31,129.27,23.606]
[1725585122376,20.0,129.31,129.27,23.106]
[1725585124363,20.0,129.31,129.28,52.7351]
[1725585124667,27.7328,129.32,129.28,52.7351]
[1725585125086,27.7328,129.32,129.28,7.7351]
[1725585125987,27.7328,129.32,129.27,15.3703]
[1725585126879,20.0,129.32,129.26,19.34]
[1725585127189,20.0,129.34,129.26,19.34]
[1725585127392,7.7345,129.29,129.26,19.34]
[1725585127691,7.7345,129.29,129.25,13.7591]
[1725585127986,7.7351,129.28,129.24,24.3637]
[1725585128177,7.7347,129.29,129.25,7.7368]
[1725585130370,7.7347,129.29,129.26,1.54697046]
[1725585130963,7.7334,129.31,129.27,7.7356]
[1725585131166,7.7332,129.32,129.27,7.7356]
[1725585131371,20.0,129.31,129.27,7.7356]
[1725585131669,20.0,129.31,129.28,7.735]
[1725585132177,7.7326,129.33,129.29,52.7344]
[1725585132496,7.7311,129.35,129.29,80.9614]
[1725585132884,7.7311,129.35,129.3,7.7338]
[1725585133195,7.7317,129.34,129.29,88.6957]
[1725585135696,37.42325246,129.39,129.29,16.6263]
[1725585135697,19.325,129.37,129.29,16.6263]
[1725585135900,61.73163118,129.39,129.26,35.9666]
[1725585135901,20.0,129.36,129.26,35.9666]
[1725585136099,7.7328,129.32,129.28,7.7351]
[1725585136894,7.7322,129.33,129.29,7.7343]
[1725585137075,20.0,129.32,129.29,7.7343]
[1725585138080,20.0,129.32,129.3,7.7338]
[1725585138285,20.0,129.33,129.31,7.7333]
[1725585138496,20.0,129.34,129.31,7.7333]
[1725585138801,27.7315,129.34,129.3,7.7337]
[1725585139211,27.7315,129.34,129.29,7.7344]
[1725585139996,7.7322,129.33,129.29,7.7344]
[1725585140274,7.7335,129.31,129.27,52.7356]
[1725585140478,7.7329,129.32,129.27,52.7356]
[1725585140676,20.0,129.31,129.27,52.7356]
[1725585141895,20.0,129.31,129.27,64.3388]
[1725585142203,20.0,129.32,129.27,64.3388]
[1725585143384,20.0,129.32,129.29,7.7343]
[1725585144089,20.0,129.32,129.3,45.0]
[1725585144292,20.0,129.32,129.29,7.7343]
[1725585148609,20.0,129.32,129.27,64.3388]
[1725585148610,27.7329,129.32,129.28,7.7349]
[1725585148811,7.7338,129.31,129.27,64.3388]
[1725585149110,7.7338,129.31,129.27,19.3388]
[1725585149418,7.7338,129.31,129.27,27.0741]
[1725585149594,7.7338,129.31,129.28,45.0]
[1725585153118,27.7329,129.32,129.28,45.0]
[1725585155416,7.7329,129.32,129.28,45.0]
[1725585155609,20.0,129.31,129.28,45.0]
[1725585157108,27.7333,129.31,129.27,19.3388]
[1725585157414,20.0,129.31,129.23,15.1628]
[1725585157626,7.7363,129.26,129.21,7.7388]
[1725585157924,19.3354,129.3,129.22,7.7385]
[1725585157925,7.7359,129.27,129.22,7.7385]
[1725585159335,27.7364,129.26,129.22,7.7385]
[1725585169635,27.7364,129.26,129.21,7.7391]
[1725585169822,27.7364,129.26,129.22,45.0]
[1725585170336,20.0,129.26,129.22,45.0]
[1725585170518,20.0,129.26,129.22,7.7385]
[1725585171130,20.0,129.26,129.23,0.99164546]
[1725585171429,7.7346,129.29,129.24,0.99156873]
[1725585171629,7.7346,129.29,129.24,1.54702171]
[1725585171842,7.7346,129.29,129.24,28.62732171]
[1725585172337,7.7346,129.29,129.24,27.0803]
[1725585172708,20.0,129.28,129.24,27.0803]
[1725585173218,20.0,129.28,129.25,1.30390131]
[1725585175833,27.7352,129.28,129.24,27.0803]
[1725585176838,20.0,129.28,129.25,45.0]
[1725585177416,27.7352,129.28,129.24,27.0803]
[1725585177642,27.7352,129.28,129.24,19.3429]
[1725585178318,20.0,129.28,129.22,7.7386]
[1725585178619,7.7373,129.25,129.21,27.0865]
[1725585179428,7.7364,129.26,129.22,7.7386]
[1725585179637,20.0,129.25,129.22,7.7386]
[1725585184050,20.0,129.25,129.21,19.3473]
[1725585184228,18.52018082,129.32,129.23,19.3446]
[1725585184229,34.9521,129.32,129.23,19.3446]
[1725585184430,34.9521,129.32,129.24,45.0]
[1725585185253,7.7347,129.29,129.25,7.7369]
[1725585185748,34.9521,129.32,129.26,52.7357]
[1725585185749,7.7334,129.31,129.26,52.7357]
[1725585185952,7.7334,129.31,129.27,7.7355]
[1725585186645,7.7334,129.31,129.26,52.7362]
[1725585186824,7.7329,129.32,129.27,7.7357]
[1725585187025,38.42145646,129.35,129.28,72.0723]
[1725585187238,7.7326,129.33,129.29,53.39136908]
[1725585187441,7.7326,129.33,129.3,0.65759096]
[1725585187841,7.7326,129.33,129.29,52.7344]
[1725585188138,20.0,129.32,129.29,52.7344]
[1725585191543,20.0,129.32,129.3,7.7338]
[1725585191732,20.0,129.33,129.31,1.54644434]
[1725585193345,20.0,129.33,129.3,7.7338]
[1725585195847,20.0,129.33,129.29,52.7344]
[1725585199131,27.7322,129.33,129.29,52.7344]
[1725585201743,20.0,129.33,129.3,7.7338]
[1725585201943,20.0,129.33,129.29,52.7343]
[1725585202447,27.7324,129.33,129.29,45.0]
[1725585203559,27.7324,129.33,129.29,52.7344]
[1725585203962,7.7327,129.32,129.28,27.0724]
[1725585204149,20.0,129.33,129.25,35.8471]
[1725585204355,20.0,129.35,129.26,45.0]
[1725585204538,20.0,129.35,129.27,7.7356]
[1725585204862,16.4021,129.34,129.27,7.7356]
[1725585205034,20.0,129.33,129.27,7.7356]
[1725585205835,20.0,129.33,129.25,43.5836]
[1725585205836,7.7343,129.3,129.25,43.5836]
[1725585206041,27.7345,129.29,129.25,43.5836]
[1725585206946,20.0,129.29,129.25,43.5836]
[1725585209061,16.4021,129.34,129.27,19.338]
[1725585209266,7.7326,129.33,129.28,54.28124963]
[1725585209467,7.7326,129.33,129.29,7.7345]
[1725585210260,7.7316,129.34,129.3,7.7337]
[1725585210565,20.0,129.33,129.3,7.7337]
[1725585210738,22.501,129.37,129.31,52.7331]
[1725585211244,7.7311,129.35,129.31,52.7331]
[1725585212262,20.0,129.34,129.31,52.7331]
[1725585212568,16.4021,129.37,129.32,7.7327]
[1725585212761,41.7984,129.4,129.32,7.7327]
[1725585213646,7.7298,129.37,129.33,7.7318]
[1725585213877,7.7291,129.39,129.33,7.7318]
[1725585214046,27.7293,129.38,129.33,7.7318]
[1725585214765,27.7293,129.38,129.34,52.7315]
[1725585214978,27.7293,129.38,129.34,7.7315]
[1725585217473,20.0,129.38,129.34,7.7315]
[1725585217651,2.81066276,129.44,129.35,80.6687]
[1725585217855,22.4776,129.45,129.35,80.6687]
[1725585218152,7.7274,129.41,129.36,7.7302]
[1725585218359,7.7274,129.41,129.37,45.0]
[1725585219163,20.0,129.4,129.37,45.0]
[1725585221485,27.728,129.4,129.36,7.7302]
[1725585221680,27.728,129.4,129.35,43.3992]
[1725585221984,7.7287,129.39,129.35,43.3992]
[1725585222358,27.728,129.4,129.36,7.7302]
[1725585223977,27.728,129.4,129.35,43.3995]
[1725585229578,20.0,129.4,129.38,7.7291]
[1725585229783,20.0,129.41,129.38,7.7291]
[1725585229985,22.4776,129.45,129.37,19.324]
[1725585230188,7.726,129.44,129.39,7.7284]
[1725585230485,7.726,129.44,129.38,46.54532087]
[1725585230486,7.7262,129.43,129.38,52.729]
[1725585231090,7.7262,129.43,129.39,7.7285]
[1725585231292,20.0,129.42,129.39,7.7285]
[1725585232493,20.0,129.42,129.4,7.7278]
[1725585232696,20.0,129.43,129.4,7.7278]
[1725585234980,20.0,129.43,129.39,27.0491]
[1725585235372,27.7263,129.43,129.39,27.0491]
[1725585237071,20.0,129.43,129.39,27.0491]
[1725585237276,20.0,129.43,129.4,52.7277]
[1725585239095,20.0,129.43,129.4,7.7277]
[1725585241796,20.0,129.43,129.39,27.0489]
[1725585241977,20.0,129.43,129.4,45.0]
[1725585242581,27.7263,129.43,129.39,27.0489]
[1725585244587,27.7263,129.43,129.39,19.3206]
[1725585244898,20.0,129.43,129.36,19.3248]
[1725585245096,20.0,129.42,129.36,19.3248]
[1725585245301,43.1659,129.44,129.36,19.3248]
[1725585246377,7.7275,129.41,129.37,7.7297]
[1725585246784,7.7275,129.41,129.36,27.0549]
[1725585246990,20.0,129.4,129.36,27.0549]
[1725585247185,7.7268,129.42,129.38,7.7287]
[1725585247401,20.0,129.41,129.36,19.3248]
[1725585247586,20.0,129.41,129.35,24.0724]
[1725585247791,7.729,129.39,129.35,16.3419]
[1725585247999,20.0,129.38,129.35,24.0728]
[1725585248587,20.0,129.38,129.35,7.7309]
[1725585248785,20.0,129.38,129.34,14.3489]
[1725585250007,20.0,129.38,129.35,7.7309]
[1725585250778,20.0,129.38,129.36,45.0]
[1725585250989,20.0,129.38,129.35,7.7309]
[1725585251501,23.1659,129.44,129.35,19.3267]
[1725585251687,7.7269,129.42,129.37,7.7296]
[1725585252295,7.7276,129.41,129.37,7.7296]
[1725585253194,7.728,129.4,129.36,52.7303]
[1725585253600,7.728,129.4,129.35,27.0574]
[1725585255595,42.4802,129.44,129.35,27.0574]
[1725585255596,27.7286,129.39,129.35,27.0574]
[1725585257712,20.0,129.39,129.35,27.0574]
[1725585259311,7.7263,129.43,129.37,19.324]
[1725585259492,7.7263,129.43,129.38,52.729]
[1725585260607,20.0,129.42,129.38,52.729]
[1725585261994,27.7268,129.42,129.38,52.729]
[1725585262292,27.7268,129.42,129.38,7.729]
[1725585262293,20.0,129.42,129.38,7.729]
[1725585265419,27.7269,129.42,129.37,27.0537]
[1725585265599,20.0,129.42,129.36,16.4241]
[1725585265799,7.7275,129.41,129.36,24.1542]
[1725585267699,7.7275,129.41,129.37,7.7297]
[1725585269323,27.7262,129.43,129.38,54.07544915]
[1725585269505,27.7262,129.43,129.38,52.729]
[1725585272618,20.0,129.43,129.39,7.7285]
[1725585272939,20.0,129.43,129.4,45.0]
[1725585274038,27.7262,129.43,129.39,7.7285]
[1725585275632,20.0,129.43,129.39,7.7285]
[1725585275833,15.5789,129.47,129.41,7.7272]
[1725585276139,23.3028,129.47,129.42,9.27160262]
[1725585276319,23.3028,129.47,129.43,1.54499044]
[1725585276915,6.5781,129.48,129.43,1.54499044]
[1725585276916,14.3014,129.48,129.43,7.726]
[1725585277137,7.7233,129.48,129.43,7.726]
[1725585277316,7.7239,129.47,129.43,7.726]
[1725585278320,20.0,129.46,129.43,7.726]
[1725585280049,6.5781,129.51,129.44,65.85836434]
[1725585280248,7.7222,129.5,129.45,7.7249]
[1725585280426,7.7215,129.51,129.46,9.26876579]
[1725585281137,7.7209,129.52,129.47,7.7236]
[1725585282575,7.7215,129.51,129.46,42.8219]
[1725585282768,7.7215,129.51,129.47,45.0]
[1725585283467,20.0,129.5,129.47,45.0]
[1725585284869,27.7221,129.5,129.46,42.8219]
[1725585285559,7.7231,129.49,129.44,7.7254]
[1725585285764,20.0,129.48,129.44,7.7254]
[1725585285966,20.0,129.5,129.45,1.54477348]
[1725585286361,15.5594,129.53,129.45,1.54477348]
[1725585286362,20.0,129.52,129.45,1.54477348]
[1725585286775,7.7226,129.49,129.45,7.7249]
[1725585286954,20.0,129.48,129.45,7.7249]
[1725585288075,7.7214,129.51,129.45,19.3118]
[1725585288249,7.7214,129.51,129.46,45.0]
[1725585288456,7.7214,129.51,129.46,52.7242]
[1725585288654,7.722,129.5,129.46,52.7242]
[1725585289670,27.7226,129.49,129.45,27.0366]
[1725585290053,27.7226,129.49,129.45,19.3118]
[1725585290976,7.7239,129.47,129.43,14.0852]
[1725585291180,7.7245,129.46,129.42,42.8303]
[1725585291383,7.7238,129.47,129.43,7.726]
[1725585299471,7.7233,129.48,129.44,7.7252]
[1725585299679,20.0,129.47,129.44,7.7252]
[1725585300366,20.0,129.47,129.4,6.3592]
[1725585300590,35.9453,129.48,129.4,6.3592]
[1725585300756,7.726,129.44,129.39,43.046]
[1725585301505,7.7261,129.43,129.39,35.3177]
[1725585301691,27.7261,129.43,129.39,35.3177]
[1725585301997,7.7269,129.42,129.39,15.9969]
[1725585302202,27.7269,129.42,129.37,14.1077]
[1725585302579,27.7269,129.42,129.38,7.729]
[1725585303714,15.9453,129.48,129.39,45.0]
[1725585304007,15.9453,129.48,129.37,6.3781]
[1725585304008,7.7279,129.41,129.37,6.3781]
[1725585304303,7.728,129.4,129.37,6.3781]
[1725585304504,7.7286,129.39,129.36,15.9969]
[1725585304703,7.7292,129.38,129.35,19.3265]
[1725585304893,7.7298,129.37,129.33,15.9969]
[1725585305082,27.7304,129.36,129.33,15.9969]
[1725585306096,27.7304,129.36,129.32,19.3315]
[1725585306284,7.731,129.35,129.3,23.7308]
[1725585306991,20.0,129.34,129.3,23.7308]
[1725585307215,27.7316,129.34,129.3,15.9969]
[1725585308707,27.7316,129.34,129.29,27.0703]
[1725585309198,7.7327,129.32,129.27,7.7356]
[1725585309405,20.0,129.34,129.26,35.8885]
[1725585309406,7.7341,129.3,129.26,35.8885]
[1725585309591,20.0,129.29,129.26,35.8885]
[1725585309783,20.0,129.29,129.26,19.3401]
[1725585311016,7.7341,129.3,129.26,19.3401]
[1725585311211,20.0,129.29,129.27,8.47431911]
[1725585311389,7.7322,129.33,129.28,7.735]
[1725585311714,20.0,129.32,129.28,7.735]
[1725585312214,20.0,129.32,129.29,1.54662575]
[1725585312385,15.2547,129.37,129.29,65.88242575]
[1725585312720,15.2547,129.37,129.3,1.54646696]
[1725585313090,7.7314,129.35,129.3,9.28016696]
[1725585313291,7.7314,129.35,129.3,7.7337]
[1725585313704,20.0,129.34,129.3,7.7337]
[1725585314310,27.7316,129.34,129.29,72.0702]
[1725585316318,20.0,129.34,129.31,7.7332]
[1725585316527,20.0,129.37,129.31,7.7332]
[1725585316704,7.7308,129.36,129.31,7.7332]
[1725585317018,7.7315,129.34,129.29,64.3358]
[1725585317194,20.0,129.33,129.29,64.3358]
[1725585317518,20.0,129.33,129.29,72.0703]
[1725585317889,20.0,129.33,129.28,16.5484]
[1725585318099,20.0,129.36,129.28,16.5484]
[1725585318320,7.7327,129.32,129.28,16.5484]
[1725585318514,20.0,129.31,129.28,16.5484]
[1725585319517,20.0,129.31,129.28,24.2834]
[1725585320721,20.0,129.32,129.28,24.2834]
[1725585321439,20.0,129.32,129.29,7.7344]
[1725585321728,20.0,129.33,129.3,52.7338]
[1725585321910,20.0,129.34,129.3,52.7338]
[1725585322097,20.0,129.36,129.3,52.7338]
[1725585322292,6.1187,129.38,129.3,52.7338]
[1725585322293,7.7311,129.35,129.3,52.7338]
[1725585323118,7.7305,129.36,129.31,7.7332]
[1725585323426,7.7305,129.36,129.31,7.7331]
[1725585323597,27.731,129.35,129.31,7.7331]
[1725585324013,7.7317,129.34,129.3,64.334]
[1725585324228,20.0,129.33,129.3,72.0677]
[1725585326098,20.0,129.33,129.3,27.0677]
[1725585326302,20.0,129.33,129.3,19.334]
[1725585327190,20.0,129.33,129.3,27.0677]
[1725585327629,20.0,129.34,129.31,0.62084043]
[1725585328013,27.7316,129.34,129.3,19.334]
[1725585330526,27.7316,129.34,129.3,27.0678]
[1725585331656,27.7316,129.34,129.31,7.7331]
[1725585331657,20.0,129.34,129.31,7.7331]
[1725585331819,7.7305,129.36,129.32,7.7327]
[1725585332137,18.19602606,129.4,129.33,0.69693058]
[1725585332138,7.7302,129.37,129.33,0.69693058]
[1725585332438,7.7302,129.37,129.33,1.54617858]
[1725585333739,20.0,129.36,129.33,1.54617858]
[1725585334825,20.0,129.36,129.33,63.07307858]
[1725585335133,27.73,129.37,129.33,24.2589]
[1725585335341,7.7303,129.36,129.33,16.5269]
[1725585336412,27.7299,129.37,129.33,16.5269]
[1725585337246,20.0,129.37,129.33,16.5269]
[1725585337427,20.0,129.37,129.34,72.0596]
[1725585337614,6.4965,129.42,129.34,19.3282]
[1725585337615,27.7295,129.38,129.34,19.3282]
[1725585337942,7.7298,129.37,129.34,19.3282]
[1725585340815,7.7304,129.36,129.33,16.5269]
[1725585341016,27.731,129.35,129.31,19.3324]
[1725585341338,7.7315,129.34,129.31,19.3324]
[1725585341647,27.7323,129.33,129.28,27.072]
[1725585341829,7.7329,129.32,129.28,19.337]
[1725585342150,20.0,129.31,129.28,19.337]
[1725585342943,27.7335,129.31,129.27,30.672]
[1725585343333,20.0,129.31,129.27,30.672]
[1725585344546,20.0,129.31,129.28,7.7349]
[1725585344749,20.0,129.32,129.29,45.0]
[1725585344920,20.0,129.32,129.28,45.0]
[1725585345118,27.7327,129.32,129.28,52.7349]
[1725585347735,20.0,129.32,129.28,52.7349]
[1725585350751,20.0,129.32,129.29,7.7345]
[1725585350947,27.7322,129.33,129.28,52.7349]
[1725585352268,27.7322,129.33,129.29,7.7345]
[1725585352569,20.0,129.33,129.3,7.7339]
[1725585353762,20.0,129.33,129.31,7.7329]
[1725585353968,20.0,129.35,129.29,19.336]
[1725585354271,27.7309,129.35,129.3,45.0]
[1725585354865,27.7309,129.35,129.3,52.7335]
[1725585355070,7.7316,129.34,129.29,27.0704]
[1725585355370,20.0,129.33,129.29,27.0704]
[1725585355745,20.0,129.33,129.3,9.28036202]
[1725585356366,20.0,129.33,129.3,7.7338]
[1725585356977,20.0,129.33,129.29,19.336]
[1725585356978,7.7311,129.35,129.31,8.77598866]
[1725585357176,20.0,129.34,129.31,8.77598866]
[1725585357752,20.0,129.34,129.31,7.7332]
[1725585357953,20.0,129.34,129.3,7.7337]
[1725585361575,20.0,129.34,129.31,20.04566559]
[1725585361774,7.7304,129.36,129.31,20.04566559]
[1725585361775,7.7299,129.37,129.32,45.74106411]
[1725585361981,6.6226,129.4,129.32,45.74106411]
[1725585361982,7.7292,129.38,129.33,8.47306859]
[1725585362185,7.7292,129.38,129.33,7.7317]
[1725585363193,20.0,129.37,129.33,7.7317]
[1725585363364,20.0,129.37,129.33,8.49538439]
[1725585363769,20.0,129.37,129.33,7.7317]
[1725585365758,20.0,129.37,129.34,7.7314]
[1725585365973,20.0,129.37,129.35,7.7308]
[1725585366182,20.0,129.38,129.35,7.7308]
[1725585366569,20.0,129.38,129.36,7.7302]
[1725585366791,16.0355,129.44,129.37,62.61866488]
[1725585367086,7.7263,129.43,129.38,9.27448916]
[1725585367987,7.7256,129.44,129.39,7.7284]
[1725585368290,25.57452918,129.48,129.4,45.0]
[1725585368493,25.57452918,129.48,129.37,67.1421]
[1725585368667,7.7245,129.46,129.41,27.0441]
[1725585369471,7.7245,129.46,129.42,7.7267]
[1725585369687,20.0,129.45,129.42,7.7267]
[1725585371175,20.0,129.46,129.42,7.7267]
[1725585371374,7.7239,129.47,129.42,7.7267]
[1725585371578,7.7239,129.47,129.43,7.7261]
[1725585372977,7.7233,129.48,129.44,7.7255]
[1725585373286,41.962,129.51,129.43,35.3876]
[1725585373287,7.7227,129.49,129.43,35.3876]
[1725585373498,7.722,129.5,129.45,7.7248]
[1725585373869,22.6581,129.51,129.44,7.7254]
[1725585373870,7.7228,129.49,129.44,7.7254]
[1725585374492,20.0,129.48,129.44,7.7254]
[1725585380389,27.7233,129.48,129.44,7.7254]
[1725585381503,27.7233,129.48,129.43,43.1136]
[1725585384673,7.7239,129.47,129.43,35.3876]
[1725585384878,7.7239,129.47,129.43,19.3147]
[1725585385078,20.0,129.46,129.43,19.3147]
[1725585385274,20.0,129.46,129.41,7.7272]
[1725585385477,7.7255,129.45,129.41,7.7272]
[1725585385680,27.7245,129.46,129.42,7.7266]
[1725585386384,20.0,129.46,129.43,7.726]
[1725585386586,7.7233,129.48,129.43,7.726]
[1725585386787,20.0,129.47,129.44,7.7254]
[1725585387582,27.7239,129.47,129.43,7.726]
[1725585391985,27.7239,129.47,129.43,9.27099284]
[1725585392300,20.0,129.47,129.44,52.7254]
[1725585394278,20.0,129.47,129.43,7.726]
[1725585395220,20.0,129.47,129.44,9.26869765]
[1725585395414,20.0,129.48,129.44,52.7255]
[1725585395707,7.7221,129.5,129.45,7.7249]
[1725585396291,30.3796,129.51,129.46,7.7239]
[1725585396690,7.722,129.5,129.46,7.7239]
[1725585397010,7.722,129.5,129.45,7.7248]
[1725585397203,20.0,129.49,129.45,7.7248]
[1725585398405,20.0,129.49,129.46,0.95125312]
[1725585398901,20.0,129.49,129.46,7.7238]
[1725585399093,27.722,129.5,129.46,7.7238]
[1725585399602,20.0,129.5,129.47,7.7236]
[1725585402807,20.0,129.5,129.48,7.723]
[1725585403116,20.0,129.51,129.48,7.723]
[1725585403807,20.0,129.52,129.48,7.723]
[1725585403994,7.7203,129.53,129.48,7.723]
[1725585405307,7.7191,129.55,129.5,7.7219]
[1725585405611,20.0,129.54,129.51,0.64652779]